fUSD/lending_fUSD_20260121
["ID","MTS","AMOUNT","RATE_DAILY","PERIOD"]
[402915140,1768987227953,-1024.29,0.00041369,120]
[402915141,1768987227999,-500.0,0.00041369,120]
[402915142,1768987228044,-500.0,0.00041369,120]
[402915143,1768987228086,-500.0,0.00041369,120]
[402915144,1768987228267,-500.0,0.00041369,120]
[402915145,1768987228308,-500.0,0.00041369,120]
[402915146,1768987228349,-560.22,0.00041369,120]
[402915147,1768987228390,-899.36,0.00041369,120]
[402915148,1768987228431,-773.36,0.00041369,120]
[402915149,1768987228471,-786.29,0.00041369,120]
[402915150,1768987228509,-758.45,0.00041369,120]
[402915151,1768987228548,-500.0,0.00041369,120]
[402915152,1768987228592,-500.0,0.00041369,120]
[402915153,1768987228632,-550.59,0.00041369,120]
[402915154,1768987228672,-456.41517359,0.00041369,120]
[402915155,1768987228712,-712.83,0.00041369,120]
[402915156,1768987228752,-500.0,0.00041369,120]
[402915157,1768987228792,-691.81,0.00041369,120]
[402915158,1768987228834,-500.0,0.00041369,120]
[402915159,1768987228873,-500.0,0.00041369,120]
[402915160,1768987228914,-500.0,0.00041369,120]
[402915161,1768987228958,-756.07,0.00041369,120]
[402915162,1768987229006,-500.0,0.00041369,120]
[402915163,1768987229050,-836.22,0.00041369,120]
[402915164,1768987229094,-500.51,0.00041369,120]
[402915165,1768987229140,-500.0,0.00041369,120]
[402915166,1768987229183,-596.18,0.00041369,120]
[402915167,1768987229225,-500.0,0.00041369,120]
[402915168,1768987229268,-500.0,0.00041369,120]
[402915169,1768987229318,-500.0,0.00041369,120]
[402915170,1768987229365,-500.0,0.00041369,120]
[402915171,1768987229408,-534.62,0.00041369,120]
[402915172,1768987229452,-567.26,0.00041369,120]
[402915173,1768987229495,-500.0,0.00041369,120]
[402915174,1768987229538,-321.4947602,0.00041369,120]
[402915175,1768987229580,-500.0,0.00041369,120]
[402915176,1768987229623,-500.0,0.00041369,120]
[402915177,1768987229665,-515.19471601,0.00041369,120]
[402915178,1768987229706,-500.0,0.00041369,120]
[402915179,1768987229750,-528.76,0.00041369,120]
[402915180,1768987229792,-500.0,0.00041369,120]
[402915181,1768987229833,-500.0,0.00041369,120]
[402915182,1768987229874,-500.0,0.00041369,120]
[402915183,1768987229917,-500.0,0.00041369,120]
[402915184,1768987229963,-500.0,0.00041369,120]
[402915185,1768987230011,-500.0,0.00041369,120]
[402915186,1768987230055,-500.0,0.00041369,120]
[402915187,1768987230098,-595.06,0.00041369,120]
[402915188,1768987230142,-500.0,0.00041369,120]
[402915189,1768987230186,-500.0,0.00041369,120]
[402915190,1768987230230,-500.0,0.00041369,120]
[402915191,1768987230273,-538.14433174,0.00041369,120]
[402915192,1768987230314,-500.0,0.00041369,120]
[402915193,1768987230354,-780.78,0.00041369,120]
[402915194,1768987230395,-500.0,0.00041369,120]
[402915195,1768987230437,-500.0,0.00041369,120]
[402915196,1768987230496,-500.0,0.00041369,120]
[402915197,1768987230541,-500.0,0.00041369,120]
[402915198,1768987230583,-511.77345805,0.00041369,120]
[402915199,1768987230626,-540.44421223,0.00041369,120]
[402915200,1768987230673,-500.0,0.00041369,120]
[402915201,1768987230715,-500.0,0.00041369,120]
[402915202,1768987230766,-500.0,0.00041369,120]
[402915203,1768987230808,-1493.28,0.00041369,120]
[402915204,1768987230849,-500.0,0.00041369,120]
[402915205,1768987230890,-500.0,0.00041369,120]
[402915206,1768987230934,-500.0,0.00041369,120]
[402915207,1768987230976,-500.0,0.00041369,120]
[402915208,1768987231024,-500.0,0.00041369,120]
[402915209,1768987231067,-500.0,0.00041369,120]
[402915210,1768987231109,-713.58,0.00041369,120]
[402915211,1768987231153,-467.58933478,0.00041369,120]
[402915212,1768987231196,-776.76,0.00041369,120]
[402915213,1768987231239,-500.0,0.00041369,120]
[402915214,1768987231279,-500.0,0.00041369,120]
[402915215,1768987231322,-500.0,0.00041369,120]
[402915216,1768987231361,-500.0,0.00041369,120]
[402915217,1768987231401,-662.63,0.00041369,120]
[402915218,1768987231440,-854.36,0.00041369,120]
[402915219,1768987231479,-500.0,0.00041369,120]
[402915220,1768987231521,-500.0,0.00041369,120]
[402915221,1768987231564,-504.66656887,0.00041369,120]
[402915222,1768987231606,-500.0,0.00041369,120]
[402915223,1768987231647,-600.0,0.0004137,120]
[402915224,1768987231686,-5185.39882,0.00041374,30]
[402915225,1768987231727,-150.0,0.00041399,120]
[402915226,1768987231767,-1355.32976684,0.00041414,120]
[402915227,1768987231805,-822.33829093,0.00041425,30]
[402915228,1768987231844,-150.0,0.00041463,30]
[402915229,1768987231884,-1517.0,0.00041467,30]
[402915230,1768987231925,-150.0,0.00041483,30]
[402915231,1768987231972,-1000.0,0.00041499,120]
[402915232,1768987232018,-500.0,0.000415,120]
[402915233,1768987232061,-500.0,0.000415,120]
[402915234,1768987232104,-500.0,0.000415,120]
[402915235,1768987232145,-1440.45,0.000415,60]
[402915236,1768987232186,-150.0,0.0004154,30]
[402915237,1768987232228,-194.28117096,0.00041562,100]
[402915238,1768987232269,-822.33829093,0.00041589,30]
[402915239,1768987232512,-300.211222,0.00041624,107]
[402915240,1768987232557,-600.0,0.00041642,60]
[402915241,1768987232601,-1300.0,0.00041642,60]
[402915242,1768987232644,-150.0,0.00041642,30]
[402915243,1768987232689,-150.0,0.00041642,30]
[402915244,1768987232732,-150.0,0.00041642,30]
[402915245,1768987232775,-150.0,0.00041642,30]
[402915246,1768987232816,-504.84337941,0.00041643,30]
[402915247,1768987232857,-500.0,0.00041643,30]
[402915248,1768987232899,-151.0,0.00041643,60]
[402915249,1768987232945,-500.0,0.00041643,120]
[402915250,1768987232992,-500.0,0.00041643,120]
[402915251,1768987233046,-500.0,0.00041643,120]
[402915252,1768987233094,-500.0,0.00041643,120]
[402915253,1768987233139,-500.0,0.00041643,120]
[402915254,1768987233184,-500.0,0.00041643,120]
[402915255,1768987233233,-500.0,0.00041643,120]
[402915256,1768987233279,-153.83792141,0.00041643,120]
[402915257,1768987233323,-500.0,0.00041643,120]
[402915258,1768987233366,-596.2388804,0.00041643,120]
[402915259,1768987233408,-725.08,0.00041643,120]
[402915260,1768987233450,-500.0,0.00041643,120]
[402915261,1768987233493,-500.0,0.00041643,120]
[402915262,1768987233536,-500.0,0.00041643,120]
[402915263,1768987233578,-772.75,0.00041643,120]
[402915264,1768987233620,-632.54,0.00041643,120]
[402915265,1768987233660,-503.59324824,0.00041643,120]
[402915266,1768987233701,-500.0,0.00041643,120]
[402915267,1768987233741,-500.0,0.00041643,120]
[402915268,1768987233782,-500.0,0.00041643,120]
[402915269,1768987233824,-500.0,0.00041643,120]
[402915270,1768987233868,-611.94691433,0.00041643,120]
[402915271,1768987233914,-764.37,0.00041643,120]
[402915272,1768987233958,-500.0,0.00041643,120]
[402915273,1768987234012,-524.67674259,0.00041643,120]
[402915274,1768987234056,-500.0,0.00041643,120]
[402915275,1768987234104,-500.0,0.00041643,120]
[402915276,1768987234146,-500.0,0.00041643,120]
[402915277,1768987234191,-597.22,0.00041643,120]
[402915278,1768987234233,-626.03,0.00041643,120]
[402915279,1768987234276,-544.03,0.00041643,120]
[402915280,1768987234318,-500.0,0.00041643,120]
[402915281,1768987234361,-630.17290045,0.00041643,120]
[402915282,1768987234403,-500.0,0.00041643,120]
[402915283,1768987234444,-500.0,0.00041643,120]
[402915284,1768987234485,-962.76,0.00041643,120]
[402915285,1768987234526,-500.0,0.00041643,120]
[402915286,1768987234567,-500.0,0.00041643,120]
[402915287,1768987234607,-500.0,0.00041643,120]
[402915288,1768987234648,-500.0,0.00041643,120]
[402915289,1768987234690,-500.0,0.00041643,120]
[402915290,1768987234732,-505.29453054,0.00041643,120]
[402915291,1768987234774,-500.0,0.00041643,120]
[402915292,1768987234815,-357.28315239,0.00041643,120]
[402915293,1768987234856,-562.40451963,0.00041643,120]
[402915294,1768987234897,-500.0,0.00041643,120]
[402915295,1768987234941,-500.0,0.00041643,120]
[402915296,1768987234984,-500.0,0.00041643,120]
[402915297,1768987235028,-500.0,0.00041643,120]
[402915298,1768987235074,-647.87,0.00041643,120]
[402915299,1768987235118,-500.0,0.00041643,120]
[402915300,1768987235161,-500.0,0.00041643,120]
[402915301,1768987235208,-500.0,0.00041643,120]
[402915302,1768987235250,-500.0,0.00041643,120]
[402915303,1768987235293,-500.0,0.00041643,120]
[402915304,1768987235335,-500.0,0.00041643,120]
[402915305,1768987235377,-500.0,0.00041643,120]
[402915306,1768987235418,-1247.52,0.00041643,120]
[402915307,1768987235459,-500.0,0.00041643,120]
[402915308,1768987235500,-517.1180411,0.00041643,120]
[402915309,1768987235542,-500.0,0.00041643,120]
[402915310,1768987235581,-500.0,0.00041643,120]
[402915311,1768987235621,-519.45408601,0.00041643,120]
[402915312,1768987235661,-500.0,0.00041643,120]
[402915313,1768987235701,-500.0,0.00041643,120]
[402915314,1768987235740,-500.0,0.00041643,120]
[402915315,1768987235781,-500.0,0.00041643,60]
[402915316,1768987235820,-500.0,0.00041643,120]
[402915317,1768987235858,-500.0,0.00041643,120]
[402915318,1768987235898,-500.0,0.00041643,120]
[402915319,1768987235937,-1561.5,0.00041643,120]
[402915320,1768987235978,-500.0,0.00041643,120]
[402915321,1768987236024,-500.0,0.00041643,120]
[402915322,1768987236070,-502.81,0.00041643,120]
[402915323,1768987236113,-500.0,0.00041643,120]
[402915324,1768987236456,-500.0,0.00041643,120]
[402915325,1768987236506,-500.0,0.00041643,120]
[402915326,1768987236558,-500.0,0.00041643,120]
[402915327,1768987236605,-500.0,0.00041643,120]
[402915328,1768987236650,-500.0,0.00041643,120]
[402915329,1768987236696,-500.0,0.00041643,120]
[402915330,1768987236741,-500.0,0.00041643,120]
[402915331,1768987236787,-500.0,0.00041643,120]
[402915332,1768987236830,-558.18,0.00041643,120]
[402915333,1768987236875,-500.0,0.00041643,120]
[402915334,1768987236919,-500.0,0.00041643,120]
[402915335,1768987236968,-500.0,0.00041643,120]
[402915336,1768987237024,-500.0,0.00041643,120]
[402915337,1768987237073,-500.0,0.00041643,120]
[402915338,1768987237121,-500.0,0.00041643,120]
[402915339,1768987237171,-500.0,0.00041643,120]
[402915340,1768987237224,-420.20594785,0.00041643,120]
[402915341,1768987237275,-500.0,0.00041643,120]
[402915342,1768987237330,-823.22,0.00041643,120]
[402915343,1768987237379,-535.1,0.00041643,120]
[402915344,1768987237430,-500.0,0.00041643,120]
[402915345,1768987237478,-500.0,0.00041643,120]
[402915346,1768987237529,-500.73,0.00041643,120]
[402915347,1768987237577,-500.0,0.00041643,120]
[402915348,1768987237626,-500.0,0.00041643,30]
[402915349,1768987237674,-500.0,0.00041643,120]
[402915350,1768987237722,-500.0,0.00041643,120]
[402915351,1768987237770,-444.96083813,0.00041643,120]
[402915352,1768987237818,-500.0,0.00041643,120]
[402915353,1768987237868,-500.0,0.00041643,120]
[402915354,1768987237917,-500.0,0.00041643,120]
[402915355,1768987237973,-500.0,0.00041643,120]
[402915356,1768987238032,-577.55,0.00041643,120]
[402915357,1768987238087,-506.57101654,0.00041643,120]
[402915358,1768987238140,-695.59,0.00041643,120]
[402915359,1768987238191,-294.05424268,0.00041643,120]
[402915360,1768987238243,-500.0,0.00041643,120]
[402915361,1768987238297,-500.0,0.00041643,120]
[402915362,1768987238354,-500.0,0.00041643,120]
[402915363,1768987238408,-500.0,0.00041643,120]
[402915364,1768987238458,-500.0,0.00041643,120]
[402915365,1768987238507,-500.0,0.00041643,120]
[402915366,1768987238560,-942.75,0.00041643,120]
[402915367,1768987238616,-500.0,0.00041643,120]
[402915368,1768987238677,-500.0,0.00041643,120]
[402915369,1768987238737,-500.0,0.00041643,120]
[402915370,1768987238798,-500.0,0.00041643,120]
[402915371,1768987238858,-500.0,0.00041643,120]
[402915372,1768987238921,-517.61064809,0.00041643,120]
[402915373,1768987238984,-500.0,0.00041643,120]
[402915374,1768987239050,-500.0,0.00041643,120]
[402915375,1768987239112,-500.0,0.00041643,120]
[402915376,1768987239171,-502.66668641,0.00041643,120]
[402915377,1768987239227,-500.0,0.00041643,120]
[402915378,1768987239280,-500.0,0.00041643,120]
[402915379,1768987239331,-500.0,0.00041643,120]
[402915380,1768987239382,-500.0,0.00041643,120]
[402915381,1768987239431,-523.9657281,0.00041643,120]
[402915382,1768987239482,-500.0,0.00041643,120]
[402915383,1768987239532,-500.0,0.00041643,120]
[402915384,1768987239591,-500.0,0.00041643,120]
[402915385,1768987239653,-500.0,0.00041643,120]
[402915386,1768987239706,-571.77,0.00041643,120]
[402915387,1768987239757,-500.0,0.00041643,120]
[402915388,1768987239818,-500.0,0.00041643,120]
[402915389,1768987239879,-500.0,0.00041643,120]
[402915390,1768987240016,-500.0,0.00041643,120]
[402915391,1768987240067,-500.0,0.00041643,120]
[402915392,1768987240124,-500.0,0.00041643,120]
[402915393,1768987240183,-500.0,0.00041643,120]
[402915394,1768987240240,-500.0,0.00041643,120]
[402915395,1768987240296,-500.0,0.00041643,120]
[402915396,1768987240351,-500.0,0.00041643,120]
[402915397,1768987240407,-500.0,0.00041643,120]
[402915398,1768987240462,-500.0,0.00041643,120]
[402915399,1768987240517,-500.0,0.00041643,120]
[402915400,1768987240573,-500.0,0.00041643,120]
[402915401,1768987240628,-508.6158131,0.00041643,120]
[402915402,1768987240679,-500.0,0.00041643,120]
[402915403,1768987240725,-500.0,0.00041643,120]
[402915404,1768987240775,-500.0,0.00041643,120]
[402915405,1768987240820,-500.0,0.00041643,120]
[402915406,1768987240865,-500.0,0.00041643,120]
[402915407,1768987240911,-243.68379961,0.00041643,120]
[402915408,1768987240956,-500.0,0.00041643,120]
[402915409,1768987241007,-500.0,0.00041643,120]
[402915410,1768987241053,-500.0,0.00041643,120]
[402915411,1768987241097,-500.0,0.00041643,120]
[402915412,1768987241143,-500.0,0.00041643,60]
[402915413,1768987241189,-500.0,0.00041643,120]
[402915414,1768987241239,-500.0,0.00041643,120]
[402915415,1768987241285,-500.0,0.00041643,120]
[402915416,1768987241331,-506.78019084,0.00041643,120]
[402915417,1768987241377,-500.0,0.00041643,120]
[402915418,1768987241422,-500.0,0.00041643,120]
[402915419,1768987241466,-500.0,0.00041643,120]
[402915420,1768987241509,-500.0,0.00041643,120]
[402915421,1768987241552,-500.0,0.00041643,120]
[402915422,1768987241595,-500.0,0.00041643,120]
[402915423,1768987241638,-500.0,0.00041643,120]
[402915424,1768987241682,-500.0,0.00041643,120]
[402915425,1768987241725,-500.0,0.00041643,120]
[402915426,1768987241768,-500.0,0.00041643,120]
[402915427,1768987241809,-500.0,0.00041643,120]
[402915428,1768987241850,-500.0,0.00041643,120]
[402915429,1768987241890,-500.0,0.00041643,90]
[402915430,1768987241931,-500.0,0.00041643,120]
[402915431,1768987241976,-500.0,0.00041643,120]
[402915432,1768987242020,-500.0,0.00041643,120]
[402915433,1768987242064,-504.77461624,0.00041643,120]
[402915434,1768987242108,-500.0,0.00041643,120]
[402915435,1768987242152,-500.0,0.00041643,120]
[402915436,1768987242194,-500.0,0.00041643,120]
[402915437,1768987242237,-500.0,0.00041643,120]
[402915438,1768987242279,-614.98032816,0.00041643,120]
[402915439,1768987242321,-500.0,0.00041643,120]
[402915440,1768987242363,-500.0,0.00041643,120]
[402915441,1768987242404,-500.0,0.00041643,120]
[402915442,1768987242445,-500.0,0.00041643,120]
[402915443,1768987242485,-500.0,0.00041643,120]
[402915444,1768987242524,-509.15473024,0.00041643,120]
[402915445,1768987242565,-500.0,0.00041643,120]
[402915446,1768987242606,-507.10044015,0.00041643,120]
[402915447,1768987242647,-509.74146783,0.00041643,120]
[402915448,1768987242688,-500.0,0.00041643,120]
[402915449,1768987242730,-518.43573331,0.00041643,120]
[402915450,1768987242769,-500.0,0.00041643,120]
[402915451,1768987242808,-500.0,0.00041643,120]
[402915452,1768987242847,-500.0,0.00041643,120]
[402915453,1768987242885,-354.63952389,0.00041643,120]
[402915454,1768987242925,-521.18231002,0.00041643,120]
[402915455,1768987242968,-500.0,0.00041643,120]
[402915456,1768987243013,-500.0,0.00041643,120]
[402915457,1768987243057,-500.0,0.00041643,120]
[402915458,1768987243100,-513.02335817,0.00041643,120]
[402915459,1768987243142,-500.0,0.00041643,120]
[402915460,1768987243185,-500.0,0.00041643,120]
[402915461,1768987243227,-440.33182824,0.00041643,120]
[402915462,1768987243269,-500.0,0.00041643,120]
[402915463,1768987243311,-500.0,0.00041643,120]
[402915464,1768987243351,-500.0,0.00041643,120]
[402915465,1768987243393,-500.0,0.00041643,120]
[402915466,1768987243435,-500.0,0.00041643,120]
[402915467,1768987243478,-500.0,0.00041643,120]
[402915468,1768987243522,-500.0,0.00041643,120]
[402915469,1768987243564,-500.0,0.00041643,120]
[402915470,1768987243607,-500.0,0.00041643,120]
[402915471,1768987243650,-500.0,0.00041643,120]
[402915472,1768987243692,-500.0,0.00041643,120]
[402915473,1768987243735,-500.0,0.00041643,120]
[402915474,1768987243775,-511.20555452,0.00041643,120]
[402915475,1768987243816,-500.0,0.00041643,120]
[402915476,1768987243858,-500.0,0.00041643,120]
[402915477,1768987243899,-500.0,0.00041643,120]
[402915478,1768987243939,-500.0,0.00041643,120]
[402915479,1768987243980,-500.0,0.00041643,120]
[402915480,1768987244022,-500.0,0.00041643,120]
[402915481,1768987244064,-500.0,0.00041643,120]
[402915482,1768987244111,-500.0,0.00041643,120]
[402915483,1768987244159,-500.0,0.00041643,120]
[402915484,1768987244206,-500.0,0.00041643,120]
[402915485,1768987244401,-500.0,0.00041643,120]
[402915486,1768987244443,-733.59,0.00041643,120]
[402915487,1768987244485,-539.04,0.00041643,120]
[402915488,1768987244529,-500.0,0.00041643,120]
[402915489,1768987244571,-500.0,0.00041643,120]
[402915490,1768987244613,-500.0,0.00041643,120]
[402915491,1768987244658,-500.0,0.00041643,120]
[402915492,1768987244704,-500.0,0.00041643,120]
[402915493,1768987244747,-500.0,0.00041643,120]
[402915494,1768987244791,-646.03,0.00041643,120]
[402915495,1768987244835,-500.0,0.00041643,120]
[402915496,1768987244879,-500.0,0.00041643,120]
[402915497,1768987244923,-500.0,0.00041643,120]
[402915498,1768987244971,-180.82137389,0.00041643,120]
[402915499,1768987245016,-500.0,0.00041643,120]
[402915500,1768987245059,-500.0,0.00041643,120]
[402915501,1768987245103,-782.9,0.00041643,120]
[402915502,1768987245147,-500.0,0.00041643,120]
[402915503,1768987245192,-500.0,0.00041643,120]
[402915504,1768987245236,-823.58,0.00041643,120]
[402915505,1768987245280,-500.0,0.00041643,120]
[402915506,1768987245324,-541.08,0.00041643,120]
[402915507,1768987245366,-500.0,0.00041643,120]
[402915508,1768987245407,-500.0,0.00041643,120]
[402915509,1768987245448,-500.0,0.00041643,120]
[402915510,1768987245491,-500.0,0.00041643,120]
[402915511,1768987245534,-528.9,0.00041643,120]
[402915512,1768987245574,-232.69219998,0.00041643,120]
[402915513,1768987245615,-500.0,0.00041643,120]
[402915514,1768987245655,-500.0,0.00041643,120]
[402915515,1768987245701,-582.43,0.00041643,120]
[402915516,1768987245743,-871.03,0.00041643,120]
[402915517,1768987245785,-500.0,0.00041643,120]
[402915518,1768987245826,-500.0,0.00041643,120]
[402915519,1768987245867,-996.99,0.00041643,120]
[402915520,1768987245910,-519.81,0.00041643,120]
[402915521,1768987245953,-500.0,0.00041643,120]
[402915522,1768987245999,-743.11,0.00041643,120]
[402915523,1768987246047,-500.0,0.00041643,120]
[402915524,1768987246090,-696.85,0.00041643,120]
[402915525,1768987246138,-500.0,0.00041643,120]
[402915526,1768987246187,-773.56,0.00041643,120]
[402915527,1768987246237,-500.0,0.00041643,120]
[402915528,1768987246284,-500.0,0.00041643,120]
[402915529,1768987246325,-500.0,0.00041643,120]
[402915530,1768987246366,-500.0,0.00041643,120]
[402915531,1768987246405,-500.0,0.00041643,120]
[402915532,1768987246446,-500.0,0.00041643,120]
[402915533,1768987246484,-500.75,0.00041643,120]
[402915534,1768987246522,-1016.1,0.00041643,120]
[402915535,1768987246560,-575.12372414,0.00041643,120]
[402915536,1768987246598,-1066.17,0.00041643,120]
[402915537,1768987246635,-503.94051979,0.00041643,120]
[402915538,1768987246673,-500.0,0.00041643,120]
[402915539,1768987246711,-500.0,0.00041643,120]
[402915540,1768987246749,-500.0,0.00041643,120]
[402915541,1768987246792,-500.0,0.00041643,120]
[402915542,1768987246840,-500.0,0.00041643,120]
[402915543,1768987246881,-500.0,0.00041643,120]
[402915544,1768987246921,-500.0,0.00041643,120]
[402915545,1768987246963,-500.0,0.00041643,120]
[402915546,1768987247009,-505.53,0.00041643,120]
[402915547,1768987247051,-500.0,0.00041643,120]
[402915548,1768987247093,-500.0,0.00041643,120]
[402915549,1768987247135,-500.0,0.00041643,120]
[402915550,1768987247178,-500.0,0.00041643,120]
[402915551,1768987247222,-500.0,0.00041643,120]
[402915552,1768987247269,-500.0,0.00041643,120]
[402915553,1768987247317,-502.36672556,0.00041643,120]
[402915554,1768987247363,-500.0,0.00041643,120]
[402915555,1768987247408,-500.0,0.00041643,120]
[402915556,1768987247452,-500.0,0.00041643,120]
[402915557,1768987247497,-630.04257021,0.00041643,120]
[402915558,1768987247540,-500.0,0.00041643,120]
[402915559,1768987247583,-500.0,0.00041643,120]
[402915560,1768987247623,-500.0,0.00041643,120]
[402915561,1768987247664,-754.45,0.00041643,120]
[402915562,1768987247705,-500.0,0.00041643,120]
[402915563,1768987247746,-500.0,0.00041643,120]
[402915564,1768987247787,-500.0,0.00041643,120]
[402915565,1768987247828,-500.0,0.00041643,120]
[402915566,1768987247870,-162.18101953,0.00041643,120]
[402915567,1768987247911,-500.0,0.00041643,120]
[402915568,1768987247952,-500.0,0.00041643,120]
[402915569,1768987248319,-500.0,0.00041643,120]
[402915570,1768987248362,-500.0,0.00041643,120]
[402915571,1768987248404,-500.0,0.00041643,120]
[402915572,1768987248448,-500.0,0.00041643,120]
[402915573,1768987248493,-729.84,0.00041643,120]
[402915574,1768987248537,-500.0,0.00041643,120]
[402915575,1768987248580,-533.28,0.00041643,120]
[402915576,1768987248623,-500.0,0.00041643,120]
[402915577,1768987248665,-500.0,0.00041643,120]
[402915578,1768987248707,-500.0,0.00041643,120]
[402915579,1768987248749,-500.0,0.00041643,120]
[402915580,1768987248797,-500.0,0.00041643,120]
[402915581,1768987248846,-500.0,0.00041643,120]
[402915582,1768987248895,-500.0,0.00041643,120]
[402915583,1768987248942,-500.0,0.00041643,120]
[402915584,1768987248987,-500.0,0.00041643,120]
[402915585,1768987249030,-873.03,0.00041643,120]
[402915586,1768987249075,-541.98820301,0.00041643,120]
[402915587,1768987249118,-500.0,0.00041643,120]
[402915588,1768987249161,-500.0,0.00041643,120]
[402915589,1768987249204,-500.0,0.00041643,120]
[402915590,1768987249247,-500.0,0.00041643,120]
[402915591,1768987249289,-500.0,0.00041643,120]
[402915592,1768987249331,-500.0,0.00041643,120]
[402915593,1768987249372,-500.0,0.00041643,120]
[402915594,1768987249413,-500.0,0.00041643,120]
[402915595,1768987249453,-685.07,0.00041643,120]
[402915596,1768987249492,-500.0,0.00041643,120]
[402915597,1768987249531,-500.0,0.00041643,120]
[402915598,1768987249572,-503.6,0.00041643,120]
[402915599,1768987249614,-500.0,0.00041643,120]
[402915600,1768987249656,-219.70676288,0.00041643,120]
[402915601,1768987249699,-530.37405801,0.00041643,120]
[402915602,1768987249742,-500.0,0.00041643,120]
[402915603,1768987249783,-524.92179637,0.00041643,120]
[402915604,1768987249823,-500.0,0.00041643,120]
[402915605,1768987249863,-500.0,0.00041643,120]
[402915606,1768987249904,-500.0,0.00041643,120]
[402915607,1768987249946,-500.0,0.00041643,120]
[402915608,1768987249990,-186.6623075,0.00041643,120]
[402915609,1768987250034,-500.0,0.00041643,120]
[402915610,1768987250081,-634.83,0.00041643,120]
[402915611,1768987250127,-1253.07,0.00041643,120]
[402915612,1768987250173,-500.0,0.00041643,30]
[402915613,1768987250218,-500.0,0.00041643,120]
[402915614,1768987250260,-500.0,0.00041643,120]
[402915615,1768987250301,-349.77797194,0.00041643,120]
[402915616,1768987250340,-500.0,0.00041643,120]
[402915617,1768987250379,-1274.75,0.00041643,120]
[402915618,1768987250418,-500.0,0.00041643,120]
[402915619,1768987250455,-500.0,0.00041643,120]
[402915620,1768987250492,-177.01249509,0.00041643,120]
[402915621,1768987250530,-500.0,0.00041643,120]
[402915622,1768987250567,-500.0,0.00041643,120]
[402915623,1768987250603,-500.0,0.00041643,120]
[402915624,1768987250642,-500.0,0.00041643,120]
[402915625,1768987250680,-500.0,0.00041643,120]
[402915626,1768987250720,-1016.93,0.00041643,120]
[402915627,1768987250757,-506.40438629,0.00041643,120]
[402915628,1768987250795,-500.0,0.00041643,120]
[402915629,1768987250833,-500.0,0.00041643,120]
[402915630,1768987250870,-894.63,0.00041643,120]
[402915631,1768987250910,-500.0,0.00041643,120]
[402915632,1768987250949,-500.0,0.00041643,120]
[402915633,1768987250988,-500.0,0.00041643,120]
[402915634,1768987251028,-500.0,0.00041643,120]
[402915635,1768987251128,-500.0,0.00041643,120]
[402915636,1768987251170,-500.0,0.00041643,120]
[402915637,1768987251212,-500.0,0.00041643,120]
[402915638,1768987251253,-500.0,0.00041643,120]
[402915639,1768987251297,-780.78,0.00041643,120]